fUSD/lending_fUSD_20251117
["ID","MTS","AMOUNT","RATE_DAILY","PERIOD"]
[394240570,1763401850278,-7016.59816281,0.00041458,30]
[394240571,1763401850285,-500.0,0.00041458,7]
[394240572,1763401850291,-500.0,0.00041458,7]
[394240573,1763401850298,-500.0,0.00041458,7]
[394240574,1763401850304,-151.0,0.00041458,120]
[394240575,1763401850311,-151.0,0.00041458,120]
[394240576,1763401850317,-151.0,0.00041458,120]
[394240577,1763401850324,-153.892861,0.00041458,120]
[394240578,1763401850332,-151.0,0.00041458,120]
[394240579,1763401850339,-151.0,0.00041458,120]
[394240580,1763401850349,-151.0,0.00041458,120]
[394240581,1763401850358,-151.0,0.00041458,120]
[394240582,1763401850368,-151.0,0.00041458,120]
[394240583,1763401850379,-151.0,0.00041458,120]
[394240584,1763401850388,-151.0,0.00041458,120]
[394240585,1763401850397,-1000.0,0.0004146,120]
[394240586,1763401850407,-1000.0,0.0004146,120]
[394240587,1763401850417,-1000.0,0.0004146,120]
[394240588,1763401850426,-1000.0,0.0004146,120]
[394240589,1763401850436,-1059.034,0.0004146,120]
[394240590,1763401850446,-1000.0,0.0004146,120]
[394240591,1763401850456,-1000.0,0.0004146,120]
[394240592,1763401850466,-1000.0,0.0004146,120]
[394240593,1763401850476,-1000.0,0.0004146,120]
[394240594,1763401850486,-1000.0,0.0004146,120]
[394240595,1763401850495,-1000.0,0.0004146,120]
[394240596,1763401850505,-148.15981433,0.0004146,120]
[394240597,1763401850519,-851.84018567,0.0004146,120]
[394240598,1763401850529,-1000.0,0.0004146,120]
[394240599,1763401850539,-1000.0,0.0004146,120]
[394240600,1763401850549,-151.0,0.00041461,14]
[394240601,1763401850558,-300.0,0.00041463,30]
[394240602,1763401850567,-300.0,0.00041463,30]
[394240603,1763401850577,-1000.0,0.00041464,120]
[394240604,1763401850588,-1000.0,0.00041464,120]
[394240605,1763401850597,-1000.0,0.00041464,120]
[394240606,1763401850606,-1000.0,0.00041464,120]
[394240607,1763401850616,-1000.0,0.00041464,120]
[394240608,1763401850626,-1000.0,0.00041464,120]
[394240609,1763401850636,-1000.0,0.00041464,120]
[394240610,1763401850645,-1000.0,0.00041464,120]
[394240611,1763401850656,-1000.0,0.00041464,120]
[394240612,1763401850667,-1000.0,0.00041464,120]
[394240613,1763401850677,-1000.0,0.00041464,120]
[394240614,1763401850687,-1000.0,0.00041464,120]
[394240615,1763401850697,-1000.0,0.00041464,120]
[394240616,1763401850707,-1000.0,0.00041464,120]
[394240617,1763401850716,-1000.0,0.00041464,120]
[394240618,1763401850726,-1000.0,0.00041464,120]
[394240619,1763401850736,-1000.0,0.00041464,120]
[394240620,1763401850745,-1000.0,0.00041464,120]
[394240621,1763401850756,-1000.0,0.00041464,120]
[394240622,1763401850765,-1000.0,0.00041464,120]
[394240623,1763401850775,-1000.0,0.00041464,120]
[394240624,1763401850784,-1000.0,0.00041464,120]
[394240625,1763401850794,-1000.0,0.00041464,120]
[394240626,1763401850803,-1000.0,0.00041464,120]
[394240627,1763401850812,-1000.0,0.00041464,120]
[394240628,1763401850822,-812.78537262,0.00041464,120]
[394240629,1763401850834,-187.21462738,0.00041464,120]
[394240630,1763401850843,-1000.0,0.00041464,120]
[394240631,1763401850852,-1000.0,0.00041464,120]
[394240632,1763401850862,-1000.0,0.00041464,120]
[394240633,1763401850871,-1000.0,0.00041464,120]
[394240634,1763401850883,-1000.0,0.00041464,120]
[394240635,1763401850892,-1000.0,0.00041464,120]
[394240636,1763401850901,-1000.0,0.00041464,120]
[394240637,1763401850910,-1000.0,0.00041464,120]
[394240638,1763401850920,-1000.0,0.00041464,120]
[394240639,1763401850929,-150.0,0.00041464,2]
[394240640,1763401850938,-452.55215102,0.00041464,2]
[394240641,1763401850947,-151.0,0.00041464,120]
[394240642,1763401850957,-159.399545,0.00041464,120]
[394240643,1763401850966,-151.0,0.00041464,120]
[394240644,1763401850975,-151.0,0.00041464,120]
[394240645,1763401850983,-151.0,0.00041464,120]
[394240646,1763401850993,-152.200975,0.00041464,120]
[394240647,1763401851003,-152.341092,0.00041464,120]
[394240648,1763401851013,-151.0,0.00041464,120]
[394240649,1763401851023,-208.40371,0.00041464,120]
[394240650,1763401851033,-151.592104,0.00041464,120]
[394240651,1763401851046,-151.941783,0.00041464,120]
[394240652,1763401851056,-151.0,0.00041464,120]
[394240653,1763401851065,-151.0,0.00041464,120]
[394240654,1763401851074,-151.0,0.00041464,120]
[394240655,1763401851083,-151.494184,0.00041464,120]
[394240656,1763401851092,-151.0,0.00041464,120]
[394240657,1763401851101,-151.0,0.00041464,120]
[394240658,1763401851109,-151.0,0.00041464,120]
[394240659,1763401851119,-151.0,0.00041464,120]
[394240660,1763401851130,-182.717014,0.00041464,120]
[394240661,1763401851139,-151.0,0.00041464,120]
[394240662,1763401851148,-151.0,0.00041464,120]
[394240663,1763401851158,-151.0,0.00041464,120]
[394240664,1763401851167,-151.0,0.00041464,120]
[394240665,1763401851177,-154.501776,0.00041464,120]
[394240666,1763401851187,-151.0,0.00041464,14]
[394240667,1763401851197,-161.456687,0.00041464,14]
[394240668,1763401851207,-151.0,0.00041464,120]
[394240669,1763401851216,-151.841322,0.00041464,120]
[394240670,1763401851226,-151.0,0.00041464,30]
[394240671,1763401851235,-115.7253164,0.00041464,120]
[394240672,1763401851250,-35.2746836,0.00041464,120]
[394240673,1763401851259,-151.0,0.00041464,120]
[394240674,1763401851268,-151.0,0.00041464,120]
[394240675,1763401851277,-151.0,0.00041464,120]
[394240676,1763401851286,-151.0,0.00041464,120]
[394240677,1763401851295,-151.0,0.00041464,120]
[394240678,1763401851304,-218.966974,0.00041464,120]
[394240679,1763401851314,-151.0,0.00041464,60]
[394240680,1763401851324,-152.06364,0.00041464,7]
[394240681,1763401851334,-152.815279,0.00041464,120]
[394240682,1763401851344,-151.0,0.00041464,15]
[394240683,1763401851354,-151.0,0.00041464,15]
[394240684,1763401851363,-277.686664,0.00041464,15]
[394240685,1763401851374,-151.0,0.00041464,120]
[394240686,1763401851384,-157.544389,0.00041464,120]
[394240687,1763401851393,-151.0,0.00041464,120]
[394240688,1763401851403,-151.0,0.00041464,28]
[394240689,1763401851413,-151.0,0.00041464,28]
[394240690,1763401851423,-151.0,0.00041464,28]
[394240691,1763401851432,-151.0,0.00041464,28]
[394240692,1763401851441,-151.0,0.00041464,28]
[394240693,1763401851451,-151.0,0.00041464,28]
[394240694,1763401851460,-151.0,0.00041464,28]
[394240695,1763401851470,-151.0,0.00041464,28]
[394240696,1763401851480,-83.50704929,0.00041464,28]
[394240697,1763401926290,300.0,0.000198,120]
[394240698,1763401926974,195.0,0.000198,120]
[394240699,1763402048784,4552.41567714,0.000198,120]
[394240700,1763402050726,-241.46180193,0.00018,2]
[394240701,1763402201011,250.0,0.00017,2]
[394240702,1763402227568,4886.73572122,0.00018,10]
[394240703,1763402227593,16750.0,0.00018,10]
[394240704,1763402285300,-3372.35723535,0.00018,10]
[394240705,1763402471944,151.0,0.00018,2]
[394240706,1763402472134,151.0,0.00018,2]
[394240707,1763402474541,277.13321711,0.00018,2]
[394240925,1763403031933,-500.0,0.00030624,2]
[394240926,1763403031944,-478.1451241,0.00030624,2]
[394240927,1763403031953,-300.0,0.0003151,119]
[394240928,1763403031963,-225.9162733,0.00032496,2]
[394240929,1763403032243,-300.0,0.00032565,119]
[394240932,1763403032270,-113.55127545,0.00033623,5]
[394240933,1763403032282,-440.45066128,0.00033623,5]
[394240934,1763403032292,-104.85933872,0.00033623,5]
[394240935,1763403032304,-352.59879329,0.00033623,5]
[394240936,1763403032319,-96.54380473,0.00033623,5]
[394240937,1763403032328,-300.0,0.00033687,119]
[394240938,1763403032337,-300.0,0.00033687,119]
[394240939,1763403032346,-250.0,0.00033687,2]
[394240940,1763403032356,-250.0,0.00033687,2]
[394240941,1763403032366,-250.0,0.00033687,2]
[394240942,1763403032375,-300.0,0.00033687,119]
[394240943,1763403032384,-400.0,0.00033719,3]
[394240944,1763403032394,-1600.0,0.00033719,3]
[394240945,1763403032404,-1600.0,0.0003372,3]
[394240946,1763403032415,-385.0,0.0003372,3]
[394240947,1763403032423,-400.0,0.0003372,3]
[394240948,1763403032433,-717.30804717,0.00033722,2]
[394240949,1763403032443,-7295.0481481,0.00033723,2]
[394240950,1763403032454,-25758.72216511,0.00033723,2]
[394240951,1763403032476,-1018.10598937,0.00033723,2]
[394240952,1763403032492,-407.10642473,0.00033723,2]
[394240953,1763403032503,-1652.25305,0.00033723,2]
[394240954,1763403032514,-5014.48397109,0.00033723,2]
[394240955,1763403032524,-953.32630351,0.00033723,2]
[394240966,1763403037939,-1037.595346,0.00033723,2]
[394240967,1763403037952,-48526.96693549,0.00033723,2]
[394240968,1763403037961,-2391.77,0.00033723,10]
[394240969,1763403037971,-747.8912154,0.00033723,2]
[394240970,1763403037981,-160.9680052,0.00033723,2]
[394240971,1763403037990,-3470.5861876,0.00033723,2]
[394240972,1763403038000,-500.0,0.00033773,5]
[394240973,1763403038009,-1907.0,0.00034,2]
[394240974,1763403038019,-166.845,0.00034008,37]
[394240975,1763403038028,-813.994,0.00034008,37]
[394240976,1763403038038,-240.0,0.00034175,2]
[394240977,1763403038051,-240.0,0.0003426,2]
[394240978,1763403038061,-240.0,0.00034345,2]
[394240979,1763403038071,-240.0,0.00034431,2]
[394240980,1763403038081,-150.0,0.00034448,2]
[394240981,1763403038090,-205.2,0.00034448,2]
[394240982,1763403038100,-280.0,0.00034516,2]
[394240983,1763403038110,-150.99,0.0003456,2]
[394240984,1763403038119,-2000.0,0.00034807,2]
[394240985,1763403038130,-155.35,0.00034821,2]
[394240986,1763403038140,-166.66,0.00035048,30]
[394240987,1763403038151,-153.99,0.00035267,60]
[394240988,1763403038160,-166.66,0.00035786,30]
[394240989,1763403038170,-320.0,0.00036202,3]
[394240990,1763403038180,-800.0,0.00036203,3]
[394240991,1763403038190,-560.0,0.00036203,3]
[394240992,1763403038200,-300.0,0.00036208,2]
[394240993,1763403038210,-2240.0,0.00036348,3]
[394240994,1763403038220,-150.99,0.0003648,2]
[394240995,1763403038233,-209.9,0.00036489,120]
[394240996,1763403038246,-166.66,0.00036524,30]
[394240997,1763403038256,-2508.91,0.00036577,2]
[394240998,1763403038266,-153.99,0.00036803,60]
[394240999,1763403038277,-409.9029,0.00036888,7]
[394241000,1763403038288,-250.0,0.00036894,2]
[394241001,1763403038306,-181.61613088,0.000372,120]
[394241002,1763403038318,-150.0,0.00037233,7]
[394241003,1763403038329,-150.0,0.00037233,7]
[394241004,1763403038342,-150.0,0.00037233,7]
[394241005,1763403038355,-150.0,0.00037233,7]
[394241006,1763403038367,-150.0,0.00037233,7]
[394241007,1763403038379,-150.0,0.00037233,7]
[394241008,1763403038390,-150.0,0.00037233,7]
[394241009,1763403038409,-150.0,0.00037233,7]
[394241010,1763403038421,-150.0,0.00037233,7]
[394241011,1763403038432,-150.0,0.00037233,7]
[394241012,1763403038442,-150.0,0.00037233,7]
[394241013,1763403038455,-150.0,0.00037233,7]
[394241014,1763403038466,-150.0,0.00037233,7]
[394241015,1763403038476,-621.31,0.00037233,14]
[394241016,1763403038486,-166.66,0.00037262,30]
[394241017,1763403038497,-3457.61,0.00037282,2]
[394241018,1763403038507,-150.0,0.00037337,2]
[394241019,1763403038518,-554.62,0.00037382,2]
[394241020,1763403038528,-7243.19172123,0.00037399,2]
[394241021,1763403038538,-2500.0,0.00037399,2]
[394241022,1763403038552,-1000.0,0.00037399,2]
[394241023,1763403038562,-173.83996261,0.00037473,5]
[394241024,1763403038573,-500.0,0.00037473,5]
[394241025,1763403038583,-500.0,0.00037473,5]
[394241026,1763403038594,-500.0,0.00037473,5]
[394241028,1763403038605,-500.0,0.00037473,5]
[394241030,1763403038615,-500.0,0.00037473,2]
[394241032,1763403038625,-151.0,0.00037477,2]
[394241034,1763403038635,-151.0,0.00037477,2]
[394241036,1763403038645,-151.0,0.00037477,2]
[394241038,1763403038655,-151.0,0.00037477,2]
[394241040,1763403038664,-151.0,0.00037477,2]
[394241042,1763403038674,-151.0,0.00037477,2]
[394241044,1763403038684,-151.0,0.00037477,2]
[394241046,1763403038693,-151.0,0.00037477,2]
[394241049,1763403038704,-151.0,0.00037477,2]
[394241051,1763403038713,-151.0,0.00037477,2]
[394241053,1763403038722,-151.0,0.00037477,2]
[394241054,1763403038731,-151.0,0.00037477,2]
[394241056,1763403038740,-151.0,0.00037477,2]
[394241059,1763403038750,-151.0,0.00037477,2]
[394241060,1763403038759,-151.0,0.00037477,2]
[394241062,1763403038769,-151.0,0.00037477,2]
[394241064,1763403038779,-151.0,0.00037477,2]
[394241066,1763403038788,-229.08778111,0.00037477,2]
[394241068,1763403038801,-500.0,0.00037498,2]
[394241070,1763403038810,-500.0,0.00037498,2]
[394241072,1763403038820,-500.0,0.00037498,2]
[394241074,1763403038829,-108033.19,0.00037499,2]
[394241076,1763403038840,-150.0,0.00037499,2]
[394241079,1763403038850,-200.0,0.00037499,2]
[394241081,1763403038862,-621.31,0.00037507,14]
[394241083,1763403038871,-300.0,0.00037577,2]
[394241085,1763403038881,-150.0,0.00037578,7]
[394241087,1763403038891,-150.0,0.00037647,7]
[394241089,1763403038901,-182.95730847,0.00037676,2]
[394241091,1763403038911,-150.0,0.00037693,7]
[394241093,1763403038921,-500.0,0.00037699,2]
[394241095,1763403038931,-1907.0,0.000377,2]
[394241097,1763403038941,-191.89827112,0.00037724,15]
[394241099,1763403038952,-500.0,0.00037764,15]
[394241101,1763403038963,-230.31668166,0.00037764,15]
[394241103,1763403038973,-500.0,0.00037764,15]
[394241105,1763403038984,-553.04656163,0.00037764,7]
[394241107,1763403038994,-500.0,0.00037764,7]
[394241109,1763403039004,-500.0,0.00037764,2]
[394241112,1763403039018,-500.0,0.00037764,2]
[394241114,1763403039028,-500.0,0.00037764,15]
[394241116,1763403039039,-527.7304776,0.00037764,7]
[394241118,1763403039052,-481.00030646,0.00037764,15]
[394241120,1763403039062,-413.32368592,0.00037764,2]
[394241122,1763403039073,-500.0,0.00037764,15]
[394241124,1763403039083,-500.0,0.00037764,15]
[394241126,1763403039094,-500.0,0.00037764,15]
[394241128,1763403039104,-500.0,0.00037764,15]
[394241130,1763403039114,-500.0,0.00037764,15]
[394241132,1763403039124,-500.0,0.00037764,15]
[394241134,1763403039133,-500.0,0.00037764,15]
[394241136,1763403039144,-500.0,0.00037764,15]
[394241138,1763403039153,-240.72033167,0.00037764,15]
[394241140,1763403039163,-500.0,0.00037764,15]
[394241142,1763403039173,-500.0,0.00037764,15]
[394241144,1763403039183,-500.0,0.00037764,15]
[394241146,1763403039192,-500.0,0.00037764,15]
[394241148,1763403039202,-500.0,0.00037764,15]
[394241150,1763403039211,-500.0,0.00037764,15]
[394241152,1763403039221,-500.0,0.00037764,15]
[394241155,1763403039231,-500.0,0.00037764,15]
[394241157,1763403039240,-500.0,0.00037764,15]
[394241159,1763403039250,-500.0,0.00037764,15]
[394241161,1763403039259,-500.0,0.00037764,15]
[394241163,1763403039269,-500.0,0.00037764,15]
[394241165,1763403039279,-500.0,0.00037764,15]
[394241167,1763403039288,-500.0,0.00037764,15]
[394241168,1763403039301,-500.0,0.00037764,15]
[394241169,1763403039312,-500.0,0.00037764,15]
[394241170,1763403039322,-500.0,0.00037764,15]
[394241171,1763403039332,-500.0,0.00037764,15]
[394241172,1763403039342,-500.0,0.00037764,15]
[394241173,1763403039353,-500.0,0.00037764,15]
[394241174,1763403039364,-500.0,0.00037764,15]
[394241175,1763403039375,-500.0,0.00037764,15]
[394241176,1763403039385,-500.0,0.00037764,15]
[394241178,1763403039396,-500.0,0.00037764,15]
[394241180,1763403039406,-500.0,0.00037764,15]
[394241182,1763403039419,-500.0,0.00037764,15]
[394241184,1763403039429,-500.0,0.00037764,15]
[394241186,1763403039438,-500.0,0.00037764,15]
[394241188,1763403039448,-500.0,0.00037764,15]
[394241190,1763403039459,-500.0,0.00037764,15]
[394241192,1763403039469,-500.0,0.00037764,15]
[394241194,1763403039479,-500.0,0.00037764,15]
[394241196,1763403039490,-500.0,0.00037764,15]
[394241198,1763403039500,-300.0,0.00037764,15]
[394241200,1763403039510,-500.0,0.00037764,15]
[394241202,1763403039521,-23981.1129912,0.00037765,4]
[394241204,1763403039531,-23981.1129912,0.00037767,4]
[394241206,1763403039541,-163.61,0.00037767,2]
[394241209,1763403039555,-500.0,0.00037772,2]
[394241211,1763403039565,-220.20733954,0.00037772,2]
[394241213,1763403039575,-601.51451353,0.00037772,2]
[394241215,1763403039585,-500.96125476,0.00037773,5]
[394241217,1763403039595,-501.16937227,0.00037773,5]
[394241219,1763403039605,-500.0,0.00037773,5]
[394241221,1763403039615,-506.20609274,0.00037773,5]
[394241223,1763403039624,-420.27752062,0.00037773,3]
[394241225,1763403039633,-500.0,0.00037773,5]
[394241227,1763403039642,-500.0,0.00037773,5]
[394241229,1763403039652,-500.0,0.00037773,5]
[394241231,1763403039661,-151.0,0.00037774,14]
[394241233,1763403039670,-6656.5763,0.00037775,2]
[394241235,1763403039680,-234.7706,0.00037775,2]
[394241237,1763403039689,-52004.5912,0.00037775,2]
[394241239,1763403039699,-50517.888585,0.00037777,2]
[394241241,1763403039708,-621.31,0.00037781,14]
[394241243,1763403039718,-150.0,0.00037824,7]
[394241245,1763403039727,-150.0,0.00037824,7]
[394241247,1763403039736,-23981.1129912,0.00037865,4]
[394241248,1763403039746,-501.0431648,0.00037873,5]
[394241249,1763403039755,-500.0,0.00037873,5]
[394241250,1763403039765,-500.0,0.00037873,5]
[394241251,1763403039778,-500.0,0.00037873,5]
[394241252,1763403039788,-499.8492798,0.00037873,5]
[394241253,1763403039801,-500.0,0.00037873,5]
[394241254,1763403039810,-200.0,0.00037873,5]
[394241255,1763403039820,-500.0,0.00037873,5]
[394241256,1763403039830,-500.0,0.00037873,5]
[394241257,1763403039839,-500.0,0.00037873,5]
[394241259,1763403039850,-305.52529526,0.00037873,5]
[394241260,1763403039860,-500.92231122,0.00037873,5]
[394241261,1763403039869,-501.3549135,0.00037873,5]
[394241262,1763403039879,-500.0,0.00037873,5]
[394241263,1763403039890,-41145.7197484,0.00037875,2]
[394241264,1763403039900,-150.0,0.00037922,7]
[394241265,1763403039911,-166.66,0.00038,30]
[394241266,1763403039921,-1006.32,0.00038,2]
[394241267,1763403039931,-1000.0,0.00038021,5]
[394241268,1763403039941,-1000.0,0.00038021,5]
[394241269,1763403039951,-1000.0,0.00038021,5]
[394241270,1763403039961,-500.0,0.00038021,2]
[394241271,1763403039970,-645.42435838,0.00038046,2]
[394241272,1763403039980,-621.31,0.00038055,14]
[394241273,1763403039989,-150.0,0.0003806,7]
[394241274,1763403039999,-150.0,0.0003806,7]
[394241275,1763403040009,-150.0,0.00038152,7]
[394241276,1763403040018,-250.192,0.00038172,2]
[394241277,1763403040028,-291.284,0.00038172,2]
[394241278,1763403040038,-5663.27,0.00038206,2]
[394241279,1763403040047,-1000.0,0.00038219,120]
[394241280,1763403040059,-1000.0,0.00038219,120]
[394241281,1763403040069,-1000.0,0.00038219,120]
[394241282,1763403040079,-1000.0,0.00038219,120]
[394241283,1763403040089,-644.1989899,0.00038219,120]
[394241284,1763403040098,-150.0,0.00038267,7]
[394241285,1763403040108,-150.0,0.00038267,7]
[394241286,1763403040118,-23981.1129912,0.00038311,4]
[394241287,1763403040128,-500.0,0.00038321,5]
[394241288,1763403040137,-500.0,0.00038321,5]
[394241289,1763403040147,-621.31,0.00038329,14]
[394241290,1763403040156,-153.99,0.00038338,60]
[394241291,1763403040166,-150.64830389,0.00038356,5]
[394241292,1763403040175,-150.99,0.000384,2]
[394241293,1763403040186,-3470.5861876,0.00038415,2]
[394241294,1763403040195,-150.0,0.00038415,7]
[394241295,1763403040205,-150.0,0.00038415,7]
[394241296,1763403040215,-490.58197567,0.00038421,5]
[394241297,1763403040225,-1000.0,0.00038421,5]
[394241298,1763403040236,-1000.0,0.00038421,5]
[394241299,1763403040245,-1000.0,0.00038421,5]
[394241300,1763403040255,-500.0,0.00038421,5]
[394241301,1763403040264,-1000.0,0.00038421,5]
[394241302,1763403040273,-150.0,0.00038474,7]
[394241303,1763403040283,-5000.0,0.0003848,30]
[394241304,1763403040292,-218.77851269,0.0003849,2]
[394241305,1763403040304,-3011.9463,0.000385,2]
[394241306,1763403040313,-747.8912154,0.00038504,2]
[394241307,1763403040323,-400.0,0.00038558,5]
[394241308,1763403040332,-23981.1129912,0.00038563,4]
[394241309,1763403040342,-1500.0,0.00038568,5]
[394241310,1763403040351,-1500.0,0.00038568,5]
[394241311,1763403040361,-47962.2259825,0.0003857,4]
[394241312,1763403040370,-19124.320075,0.0003857,4]
[394241314,1763403040381,-500.0,0.00038573,5]
[394241316,1763403040392,-500.46051516,0.00038573,5]
[394241317,1763403040406,-500.0,0.00038573,5]
[394241318,1763403040418,-500.0,0.00038573,5]
[394241319,1763403040428,-151.0,0.00038577,14]
[394241320,1763403040438,-23981.1129912,0.00038579,4]
[394241321,1763403040448,-3824.864015,0.0003858,4]
[394241322,1763403040459,-191848.90393,0.0003858,4]
[394241323,1763403040468,-122395.64848,0.0003858,4]
[394241324,1763403040478,-151.0,0.00038587,14]
[394241325,1763403040490,-500.0,0.00038589,2]
[394241326,1763403040500,-500.0,0.00038589,120]
[394241327,1763403040509,-326.3196045,0.00038589,120]
[394241328,1763403040519,-500.0,0.00038589,120]
[394241330,1763403040528,-500.0,0.00038589,7]
[394241332,1763403040537,-500.0,0.00038589,30]
[394241334,1763403040551,-488.0,0.00038589,7]
[394241335,1763403040560,-500.0,0.00038589,2]
[394241336,1763403040570,-538.90933031,0.00038589,120]
[394241337,1763403040580,-500.0,0.00038589,2]
[394241338,1763403040589,-300.0,0.00038589,2]
[394241339,1763403040598,-500.0,0.00038589,2]
[394241340,1763403040608,-500.0,0.00038589,2]
[394241341,1763403040618,-500.0,0.00038589,2]
[394241342,1763403040628,-500.0,0.00038589,120]
[394241343,1763403040637,-500.0,0.00038589,30]
[394241344,1763403040647,-500.0,0.00038589,120]
[394241345,1763403040656,-500.0,0.00038589,120]
[394241346,1763403040666,-7952.0,0.0003859,5]
[394241347,1763403040676,-143886.677947,0.0003859,4]
[394241348,1763403040685,-45898.36818,0.0003859,4]
[394241349,1763403040694,-151.0,0.00038597,14]
[394241350,1763403040703,-1005.09466175,0.00038599,2]
[394241351,1763403040713,-500.0,0.00038599,120]
[394241352,1763403040722,-500.0,0.00038599,120]
[394241353,1763403040731,-500.0,0.00038599,7]
[394241354,1763403040740,-500.0,0.00038599,7]
[394241355,1763403040749,-500.0,0.00038599,7]
[394241356,1763403040759,-500.0,0.00038599,7]
[394241357,1763403040768,-500.0,0.00038599,30]
[394241358,1763403040777,-500.0,0.00038599,120]
[394241359,1763403040787,-500.0,0.00038599,120]
[394241360,1763403040797,-277.30486045,0.00038599,120]
[394241361,1763403040809,-500.0,0.00038599,30]
[394241362,1763403040819,-500.0,0.00038599,30]
[394241363,1763403040829,-500.0,0.00038599,30]
[394241364,1763403040838,-500.0,0.00038599,30]
[394241365,1763403040847,-500.0,0.00038599,120]
[394241366,1763403040857,-500.0,0.00038599,120]
[394241367,1763403040866,-500.0,0.00038599,120]
[394241368,1763403040876,-556.22510754,0.00038599,120]
[394241369,1763403040886,-500.0,0.00038599,120]
[394241370,1763403040897,-500.0,0.00038599,120]
[394241371,1763403040907,-525.85631123,0.00038599,120]
[394241372,1763403040916,-151.0,0.000386,120]
[394241373,1763403040925,-151.0,0.000386,120]
[394241374,1763403040935,-151.0,0.000386,10]
[394241375,1763403040944,-151.0,0.000386,120]
[394241376,1763403040954,-151.169101,0.000386,120]
[394241377,1763403040963,-151.0,0.000386,120]
[394241378,1763403040973,-151.0,0.000386,120]
[394241379,1763403040983,-151.0,0.000386,120]
[394241380,1763403041250,-151.0,0.000386,120]
[394241381,1763403041260,-151.0,0.000386,120]
[394241382,1763403041269,-151.0,0.000386,120]
[394241383,1763403041279,-151.0,0.000386,120]
[394241384,1763403041288,-151.0,0.000386,120]
[394241385,1763403041297,-151.0,0.000386,120]
[394241386,1763403041308,-151.0,0.000386,120]
[394241387,1763403041318,-151.0,0.000386,120]
[394241388,1763403041327,-151.0,0.000386,120]
[394241389,1763403041336,-151.0,0.000386,120]
[394241390,1763403041346,-252.208175,0.000386,28]
[394241391,1763403041355,-156.952167,0.000386,120]
[394241392,1763403041365,-156.952167,0.000386,120]
[394241393,1763403041375,-156.952167,0.000386,120]
[394241394,1763403041385,-156.952167,0.000386,120]
[394241395,1763403041395,-151.0,0.000386,120]
[394241396,1763403041404,-990.328305,0.000386,120]
[394241397,1763403041418,-151.0,0.000386,120]
[394241398,1763403041427,-990.328305,0.000386,120]
[394241399,1763403041437,-151.0,0.000386,120]
[394241400,1763403041447,-151.0,0.000386,120]
[394241401,1763403041457,-151.0,0.000386,120]
[394241402,1763403041467,-151.0,0.000386,120]
[394241403,1763403041477,-151.0,0.000386,120]
[394241404,1763403041489,-990.328305,0.000386,120]
[394241405,1763403041500,-990.328305,0.000386,120]
[394241406,1763403041509,-151.0,0.000386,120]
[394241407,1763403041519,-151.0,0.000386,120]
[394241408,1763403041529,-151.0,0.000386,120]
[394241409,1763403041538,-151.0,0.000386,120]
[394241410,1763403041548,-234.703531,0.000386,120]
[394241411,1763403041559,-234.703531,0.000386,120]
[394241412,1763403041569,-234.703531,0.000386,120]